bitfinex/quotes_BTCUSD_20220307
["timestamp","ask_amount","ask_price","bid_price","bid_amount"]
[1646681948098,0.00011289,37446.0,37442.0,0.066781]
[1646681948298,0.06677931,37448.0,37443.0,0.01335]
[1646681948497,0.06690794,37448.0,37442.0,0.066781]
[1646681948697,0.13369194,37448.0,37442.0,0.066781]
[1646681948899,0.29210936,37443.0,37436.0,0.02322372]
[1646681949149,0.29210936,37443.0,37426.0,0.4791]
[1646681949150,0.06679657,37440.0,37426.0,0.4791]
[1646681949347,0.3,37440.0,37426.0,0.4791]
[1646681949546,0.29210936,37443.0,37427.0,0.01335]
[1646681949846,0.133589,37441.0,37435.0,0.23515706]
[1646681950045,0.066795,37440.0,37432.0,0.01335]
[1646681950244,0.0667907,37439.0,37437.0,0.06679]
[1646681950447,0.02629,37454.0,37438.0,0.3]
[1646681950646,0.05910379,37450.0,37439.0,0.01335]
[1646681950854,0.05910379,37450.0,37435.0,0.31335]
[1646681951047,0.00013115,37448.0,37437.0,0.28126853]
[1646681951245,0.18839792,37448.0,37438.0,0.01335]
[1646681951461,0.06677269,37446.0,37441.0,0.066775]
[1646681952244,0.13162227,37446.0,37441.0,0.066775]
[1646681952444,0.13162227,37446.0,37440.0,0.13355]
[1646681952644,0.31212842,37444.0,37440.0,0.13355]
[1646681952888,0.31212842,37444.0,37437.0,0.133571]
[1646681952889,0.20034533,37445.0,37444.0,0.26787747]
[1646681953791,0.47211768,37445.0,37444.0,0.26787747]
[1646681954191,0.13357492,37445.0,37444.0,0.26787747]
[1646681954390,0.11732122,37445.0,37444.0,0.26787747]
[1646681954889,0.18410122,37445.0,37444.0,0.26787747]
[1646681955091,0.51134994,37445.0,37444.0,0.26787747]
[1646681956541,0.41134994,37445.0,37444.0,0.26787747]
[1646681957041,0.066795,37443.0,37434.0,0.01335]
[1646681957247,0.066795,37443.0,37428.0,0.01335]
[1646681957248,0.20041491,37440.0,37428.0,0.01335]
[1646681957640,0.20041491,37440.0,37424.0,1.29447529]
[1646681957641,0.02629,37438.0,37424.0,1.29447529]
[1646681957842,0.4,37439.0,37424.0,1.29447529]
[1646681957843,0.02629,37431.0,37424.0,1.29447529]
[1646681958141,0.48936935,37425.0,37424.0,1.29447529]
[1646681958339,0.53936935,37425.0,37424.0,1.29447529]
[1646681958540,0.56565935,37425.0,37424.0,1.29447529]
[1646681958743,0.63356938,37425.0,37424.0,1.29447529]
[1646681958940,0.4329744,37425.0,37424.0,1.29447529]
[1646681960602,0.066835,37426.0,37424.0,1.29447529]
[1646681960805,0.13366869,37428.0,37424.0,1.29447529]
[1646681961600,0.06043568,37425.0,37424.0,1.29447529]
[1646681961804,0.43847263,37428.0,37424.0,0.60648129]
[1646681962006,0.02629,37426.0,37424.0,0.60648129]
[1646681962203,0.43847263,37428.0,37424.0,0.60648129]
[1646681962602,0.48847263,37428.0,37424.0,0.60648129]
[1646681963003,0.05604175,37427.0,37424.0,0.60648129]
[1646681963205,0.209957,37426.0,37424.0,0.5679029]
[1646681963404,0.32629,37425.0,37424.0,0.54062094]
[1646681963602,0.05,37425.0,37424.0,0.44897061]
[1646681963804,0.05,37425.0,37412.0,0.001]
[1646681963805,0.47512359,37424.0,37412.0,0.001]
[1646681964049,0.408287,37418.0,37408.0,0.001]
[1646681964249,0.02629,37415.0,37408.0,0.001]
[1646681964447,0.02629,37415.0,37400.0,0.001]
[1646681964448,0.02629,37409.0,37400.0,0.001]
[1646681964644,0.02629,37407.0,37400.0,0.001]
[1646681964846,0.434577,37406.0,37401.0,0.011]
[1646681965044,1.066883,37401.0,37398.0,0.001]
[1646681965248,0.14621475,37400.0,37398.0,0.001]
[1646681965453,0.14621475,37400.0,37394.0,0.003]
[1646681965454,1.67629,37398.0,37394.0,0.003]
[1646681965645,0.02629,37396.0,37393.0,0.003]
[1646681966044,1.67629,37394.0,37391.0,0.001]
[1646681966349,0.32629,37393.0,37388.0,0.001]
[1646681966745,0.32629,37393.0,37391.0,0.00021224]
[1646681966947,1.57629,37391.0,37384.0,0.01348736]
[1646681967145,0.63618555,37389.0,37384.0,0.00012736]
[1646681967345,0.02537,37385.0,37379.0,0.21613141]
[1646681967545,0.088937,37381.0,37379.0,0.21613141]
[1646681967794,0.062567,37381.0,37379.0,0.21613141]
[1646681968011,0.200741,37390.0,37379.0,0.21613141]
[1646681968012,0.28737279,37392.0,37379.0,0.70534322]
[1646681968194,0.28737279,37392.0,37379.0,0.31724393]
[1646681968392,0.066885,37391.0,37379.0,0.25035493]
[1646681968794,0.066885,37391.0,37381.0,0.18031368]
[1646681968795,0.133775,37391.0,37381.0,0.18031368]
[1646681968994,0.133775,37391.0,37379.0,0.26371493]
[1646681968995,0.133775,37391.0,37380.0,0.1862126]
[1646681969195,0.133775,37391.0,37385.0,0.2829067]
[1646681969393,0.32019277,37386.0,37385.0,0.2829067]
[1646681969591,0.3,37394.0,37385.0,0.2829067]
[1646681969792,0.35,37394.0,37379.0,0.01336]
[1646681969994,0.133787,37388.0,37379.0,0.01336]
[1646681970193,0.05744372,37386.0,37379.0,0.01336]
[1646681970392,0.05744372,37386.0,37382.0,0.00019106]
[1646681970594,0.29534956,37385.0,37382.0,0.00019106]
[1646681970994,0.0669,37385.0,37382.0,0.00019106]
[1646681971195,0.0669,37385.0,37379.0,0.01336]
[1646681971397,0.0669,37385.0,37380.0,0.00019107]
[1646681971398,1.85751898,37384.0,37380.0,0.00019107]
[1646681971645,1.85751898,37384.0,37376.0,0.00011466]
[1646681971646,1.95,37383.0,37376.0,0.00011466]
[1646681971852,0.06771108,37380.0,37376.0,0.00011466]
[1646681972046,0.32629,37379.0,37376.0,0.00011466]
[1646681972347,1.84758512,37376.0,37371.0,0.7663913]
[1646681972544,0.25693208,37378.0,37371.0,0.7663913]
[1646681973145,0.16014028,37375.0,37371.0,0.7663913]
[1646681973343,0.31355155,37372.0,37371.0,0.7663913]
[1646681973543,0.12801418,37375.0,37371.0,0.7663913]
[1646681973848,0.42121265,37374.0,37362.0,0.01036096]
[1646681974043,0.02629,37372.0,37362.0,0.01036096]
[1646681974245,0.19323516,37372.0,37362.0,0.01036096]
[1646681974449,0.02629,37370.0,37362.0,0.01036096]
[1646681974643,0.160186,37367.0,37362.0,0.01036096]
[1646681974845,0.133896,37367.0,37362.0,0.01036096]
[1646681975043,0.05,37366.0,37362.0,0.01036096]
[1646681975309,0.04855,37366.0,37362.0,0.01036096]
[1646681975510,0.066933,37365.0,37362.0,0.01036096]
[1646681975713,0.3,37364.0,37362.0,0.01036096]
[1646681975912,0.183873,37365.0,37362.0,0.01036096]
[1646681976414,0.133873,37365.0,37362.0,0.01036096]
[1646681976610,0.133873,37365.0,37362.0,0.00036096]
[1646681977212,0.30081527,37365.0,37362.0,0.00036096]
[1646681977812,0.13388508,37364.0,37362.0,0.00036096]
[1646681978011,0.30081527,37365.0,37357.0,0.2397722]
[1646681978412,0.133889,37363.0,37357.0,0.00425637]
[1646681978612,0.133889,37363.0,37352.0,0.34750134]
[1646681978613,0.34723578,37362.0,37352.0,0.34750134]
[1646681978813,0.34723578,37362.0,37353.0,0.3]
[1646681978814,0.20970078,37362.0,37353.0,0.3]
[1646681979043,0.063292,37363.0,37354.0,0.13452271]
[1646681979240,0.20028,37368.0,37362.0,0.37597898]
[1646681979442,0.20028,37368.0,37363.0,0.4]
[1646681979649,0.20028,37368.0,37364.0,0.23693073]
[1646681979842,0.20046,37372.0,37365.0,0.3]
[1646681980042,0.13382196,37382.0,37364.0,0.23693073]
[1646681980244,0.37638205,37382.0,37371.0,0.26707173]
[1646681980644,0.06690938,37380.0,37371.0,0.26707173]
[1646681980843,0.06690938,37380.0,37371.0,0.5067628]
[1646681981040,0.06651,37379.0,37371.0,0.5067628]
[1646681981441,0.06651,37379.0,37371.0,0.3878628]
[1646681981643,0.06651,37379.0,37372.0,0.3]
[1646681981947,0.00181111,37385.0,37372.0,0.3]
[1646681981948,0.09990978,37403.0,37378.0,1.1489025]
[1646681982152,0.09990978,37403.0,37383.0,0.15]
[1646681982445,0.00174361,37409.0,37390.0,0.15]
[1646681982651,0.19226361,37413.0,37404.0,0.133689]
[1646681982898,0.01336,37418.0,37412.0,0.00523083]
[1646681983197,0.13369502,37415.0,37412.0,0.00523083]
[1646681983395,0.13369502,37415.0,37402.0,0.05]
[1646681983597,0.13369502,37415.0,37394.0,0.1]
[1646681983598,0.00013022,37410.0,37394.0,0.4]
[1646681983795,0.00013022,37410.0,37393.0,2.81571511]
[1646681983796,0.066872,37406.0,37393.0,2.81571511]
[1646681983996,0.28589856,37406.0,37400.0,0.30159312]
[1646681984195,0.28589356,37406.0,37400.0,0.30159312]
[1646681984398,0.05,37413.0,37400.0,0.30159312]
[1646681984700,2.2e-07,37401.0,37400.0,0.30159312]
[1646681984896,2.2e-07,37401.0,37398.0,0.3]
[1646681985295,2.2e-07,37401.0,37400.0,0.066858]
[1646681985496,0.066847,37412.0,37400.0,0.066858]
[1646681985700,0.01,37419.0,37400.0,0.056858]
[1646681985701,0.03629,37419.0,37400.0,0.056858]
[1646681985898,0.06685,37409.0,37397.0,0.36147149]
[1646681986096,0.06685,37409.0,37390.0,0.0999]
[1646681986097,0.02629,37404.0,37390.0,0.0999]
[1646681986298,0.02629,37401.0,37389.0,0.075]
[1646681986541,0.02629,37401.0,37388.0,0.0447]
[1646681986739,0.02629,37401.0,37385.0,0.7557]
[1646681986740,0.16446771,37394.0,37385.0,0.7557]
[1646681986941,0.16446771,37394.0,37389.0,0.28844921]
[1646681987140,0.16446771,37394.0,37389.0,0.27844921]
[1646681987741,0.29823671,37394.0,37389.0,0.27844921]
[1646681987945,0.066885,37393.0,37389.0,0.27844921]
[1646681988944,0.066875,37396.0,37390.0,0.066876]
[1646681989347,0.06398025,37396.0,37390.0,0.066876]
[1646681989744,0.06398025,37396.0,37389.0,0.27844921]
[1646681989954,0.06398025,37396.0,37395.0,0.30721004]
[1646681990149,0.06,37401.0,37395.0,0.60721004]
[1646681990404,0.06,37401.0,37395.0,0.69012004]
[1646681990601,0.06,37401.0,37396.0,0.06607959]
[1646681990805,0.06,37401.0,37395.0,0.60721004]
[1646681991001,0.06,37401.0,37395.0,0.30721004]
[1646681991801,0.06,37401.0,37396.0,0.3]
[1646681992001,0.06,37401.0,37395.0,0.30721004]
[1646681993103,0.06,37401.0,37396.0,0.066861]
[1646681993804,0.260611,37401.0,37392.0,0.00013624]
[1646681994049,0.310611,37401.0,37386.0,0.3]
[1646681994243,0.06689033,37393.0,37383.0,0.3]
[1646681994442,0.13378065,37397.0,37394.0,0.07113131]
[1646681994643,0.13629,37401.0,37394.0,0.07113131]
[1646681994845,0.133784,37398.0,37394.0,0.07113131]
[1646681995246,0.05,37397.0,37394.0,0.07113131]
[1646681995448,0.126879,37401.0,37394.0,0.07113131]
[1646681995449,0.06,37401.0,37394.0,0.07113131]
[1646681995644,0.06,37401.0,37396.0,0.05686]
[1646681996245,0.06,37401.0,37397.0,0.15538791]
[1646681996444,0.06,37401.0,37398.0,0.2745832]
[1646681996645,0.06,37401.0,37399.0,0.28221894]
[1646681996944,0.06,37401.0,37400.0,0.12533209]
[1646681997145,0.00012989,37403.0,37402.0,0.133705]
[1646681997350,0.00190072,37414.0,37403.0,1.65]
[1646681997549,0.00190072,37414.0,37404.0,0.0447]
[1646681997800,0.00190072,37414.0,37407.0,0.02629]
[1646681997995,0.00190072,37414.0,37409.0,0.02629]
[1646681998197,0.00190072,37414.0,37413.0,0.25584308]
[1646681998495,0.00190072,37414.0,37411.0,0.133657]
[1646681998800,0.00190072,37414.0,37405.0,0.066855]
[1646681999198,0.066831,37416.0,37405.0,0.066855]
[1646681999499,0.28826132,37409.0,37403.0,0.00025954]
[1646681999698,0.066862,37408.0,37403.0,0.00025954]
[1646682000099,0.066862,37408.0,37404.0,0.13656718]
[1646682000301,0.01,37419.0,37405.0,0.31336]
[1646682000497,0.133679,37413.0,37408.0,0.133673]
[1646682000703,0.066843,37414.0,37412.0,0.26246217]
[1646682000900,0.066843,37414.0,37413.0,0.3]
[1646682001103,0.01,37419.0,37413.0,0.3]
[1646682001298,0.01,37419.0,37412.0,0.44279255]
[1646682001543,0.0001299,37415.0,37412.0,0.44279255]
[1646682001745,0.0001299,37415.0,37414.0,0.133635]
[1646682002850,0.005,37419.0,37418.0,0.28968501]
[1646682003046,0.005,37419.0,37418.0,0.42331001]
[1646682003245,0.005,37419.0,37418.0,0.41331001]
[1646682003446,0.015,37425.0,37418.0,0.41331001]
[1646682003645,0.015,37425.0,37418.0,0.133625]
[1646682003646,0.16281506,37422.0,37418.0,0.133625]
[1646682003850,0.16281506,37422.0,37412.0,0.3]
[1646682004048,0.0001299,37420.0,37406.0,0.3]
[1646682004247,0.116836,37418.0,37405.0,0.05]
[1646682004447,0.116836,37418.0,37410.0,0.133677]
[1646682004646,0.2119015,37416.0,37411.0,0.3130955]
[1646682004847,0.066836,37416.0,37410.0,0.133677]
[1646682005048,0.116836,37416.0,37410.0,0.133677]
[1646682005299,0.0001299,37415.0,37410.0,0.133677]
[1646682005507,0.0001299,37415.0,37412.0,0.066836]
[1646682005904,0.0001299,37415.0,37410.0,0.133677]
[1646682006112,0.40838,37414.0,37404.0,0.01336]
[1646682006304,0.02629,37413.0,37403.0,0.00025954]
[1646682006599,0.092157,37410.0,37403.0,0.00025954]
[1646682006801,0.58069759,37409.0,37403.0,0.00025954]
[1646682006999,0.55540759,37409.0,37403.0,0.00025954]
[1646682007200,0.133728,37408.0,37403.0,0.31034542]
[1646682007599,0.1338579,37408.0,37403.0,0.00025954]
[1646682008008,0.05,37407.0,37403.0,0.00025954]
[1646682008201,0.48567752,37406.0,37403.0,0.00025954]
[1646682008406,0.43467,37404.0,37403.0,0.00025954]
[1646682008604,0.2595151,37398.0,37394.0,0.07113131]
[1646682008805,0.19283595,37395.0,37394.0,0.07113131]
[1646682009074,0.71185595,37395.0,37394.0,0.02202614]
[1646682009261,1.67629,37394.0,37382.0,0.01336]
[1646682009461,0.05,37392.0,37377.0,0.52985269]
[1646682009659,0.05,37392.0,37377.0,0.22985269]
[1646682009862,0.44584657,37383.0,37377.0,0.01337]
[1646682010063,0.12361323,37383.0,37378.0,7.798e-05]
[1646682010261,0.05,37382.0,37378.0,7.798e-05]
[1646682010465,0.05,37382.0,37376.0,0.12387398]
[1646682010770,0.06691395,37380.0,37375.0,0.01436]
[1646682010965,0.06691395,37380.0,37373.0,0.00836]
[1646682011165,0.11691395,37380.0,37373.0,0.00836]
[1646682011363,0.2,37382.0,37374.0,0.066909]
[1646682011561,0.2,37382.0,37376.0,0.31188092]
[1646682012163,0.05,37382.0,37381.0,0.27813303]
[1646682012561,0.05,37382.0,37380.0,0.066897]
[1646682012787,0.00611212,37385.0,37376.0,0.133798]
[1646682013091,0.19905502,37387.0,37376.0,0.133798]
[1646682013291,0.227013,37388.0,37377.0,0.3]
[1646682013292,0.066898,37383.0,37377.0,0.3]
[1646682013491,0.066898,37383.0,37378.0,0.02629]
[1646682013690,0.1998,37393.0,37384.0,0.02629]
[1646682013892,0.1998,37393.0,37384.0,0.32629]
[1646682014289,0.1998,37393.0,37392.0,0.22947218]
[1646682014490,0.20016,37400.0,37396.0,0.46118342]
[1646682014892,2.53284667,37411.0,37396.0,0.46118342]
[1646682014893,0.133742,37403.0,37396.0,0.46118342]
[1646682015093,0.133742,37403.0,37396.0,0.48747342]
[1646682015290,0.133742,37403.0,37397.0,0.3]
[1646682015491,0.00094436,37415.0,37399.0,0.02629]
[1646682015692,0.20058,37413.0,37400.0,0.20526823]
[1646682015894,0.13369,37411.0,37401.0,0.3]
[1646682016193,0.00094436,37415.0,37401.0,0.3]
[1646682016194,0.00094436,37415.0,37401.0,0.31336]
[1646682016392,0.00094436,37415.0,37402.0,0.01336]
[1646682016644,0.4778,37424.0,37413.0,0.2882835]
[1646682016645,0.066823,37424.0,37413.0,0.2882835]
[1646682016841,0.066823,37424.0,37414.0,0.51064096]
[1646682017039,0.133645,37421.0,37414.0,0.51064096]
[1646682017242,0.015,37425.0,37415.0,0.1]
[1646682017443,0.01336,37432.0,37418.0,1.65]
[1646682017647,0.20088,37439.0,37418.0,1.65]
[1646682017648,0.1735617,37439.0,37431.0,0.24194985]
[1646682017841,0.409,37446.0,37431.0,0.24194985]
[1646682017842,0.066794,37435.0,37431.0,0.24194985]
[1646682019541,0.066794,37435.0,37431.0,0.37553585]
[1646682019744,0.06690429,37435.0,37431.0,0.24194985]
[1646682020397,0.06690429,37435.0,37432.0,0.20954216]
[1646682020597,0.066794,37435.0,37433.0,0.133585]
[1646682020800,0.06690429,37435.0,37433.0,0.133585]
[1646682021208,0.06690429,37435.0,37431.0,0.24194985]
[1646682021797,0.056794,37435.0,37432.0,0.133586]
[1646682021996,0.05690429,37435.0,37432.0,0.133586]
[1646682022396,0.00011029,37435.0,37432.0,0.133586]
[1646682022702,0.13357,37452.0,37433.0,1.67629]
[1646682022907,0.02857077,37457.0,37440.0,0.17629]
[1646682022908,0.20082,37451.0,37440.0,0.17629]
[1646682023101,0.20004,37458.0,37446.0,0.15]
[1646682023299,0.1998,37465.0,37449.0,0.02629]
[1646682023497,0.4181,37474.0,37462.0,0.22883198]
[1646682023803,0.4181,37474.0,37462.0,0.09728]
[1646682024054,0.30801662,37463.0,37462.0,0.09728]
[1646682024253,0.60801662,37463.0,37453.0,2.59011812]
[1646682024453,0.200315,37462.0,37453.0,2.59011812]
[1646682025154,0.200315,37462.0,37454.0,0.21505324]
[1646682025550,0.200315,37462.0,37453.0,2.59011812]
[1646682025950,0.200315,37462.0,37454.0,0.066761]
[1646682026151,0.200315,37462.0,37453.0,2.59011812]
[1646682026152,0.066768,37461.0,37453.0,2.59011812]
[1646682026357,0.066765,37459.0,37453.0,2.59011812]
[1646682026557,0.066765,37459.0,37445.0,0.133542]
[1646682026558,0.70838,37458.0,37445.0,0.133542]
[1646682026764,0.16398318,37448.0,37440.0,0.200297]
[1646682026956,0.16398318,37448.0,37439.0,0.2446]
[1646682026957,0.3,37447.0,37439.0,0.0447]
[1646682027153,0.16398318,37448.0,37441.0,0.01333]
[1646682027353,0.05,37447.0,37441.0,0.32582231]
[1646682027552,0.05,37447.0,37441.0,0.01333]
[1646682027790,0.21398318,37448.0,37441.0,0.01333]
[1646682027991,0.133589,37447.0,37441.0,0.01333]
[1646682028193,0.31335,37455.0,37441.0,0.01333]
[1646682028194,0.3,37459.0,37441.0,0.01333]
[1646682028394,0.03368215,37461.0,37442.0,0.0447]
[1646682028596,0.00263382,37458.0,37443.0,0.18466577]
[1646682028793,0.00263382,37458.0,37446.0,0.133524]
[1646682028998,0.00263382,37458.0,37449.0,0.2095709]
[1646682029793,0.00263382,37458.0,37455.0,2.57436967]
[1646682030195,0.00263382,37458.0,37449.0,0.2095709]
[1646682030396,0.13615982,37458.0,37451.0,0.066763]
[1646682030597,0.13628937,37458.0,37451.0,0.066763]
[1646682030797,0.066762,37456.0,37451.0,0.066763]
[1646682030994,0.13628937,37458.0,37452.0,0.25398024]
[1646682030995,0.00276337,37458.0,37452.0,0.25398024]
[1646682031195,0.00276337,37458.0,37453.0,0.133498]
[1646682031401,0.00263382,37458.0,37453.0,0.133498]
[1646682031663,0.00263382,37458.0,37443.0,0.1]
[1646682031664,0.21108123,37454.0,37443.0,0.1]
[1646682031861,0.066779,37452.0,37444.0,0.0447]
[1646682032058,0.066779,37452.0,37448.0,0.008]
[1646682032059,0.1998,37451.0,37448.0,0.008]
[1646682032256,0.066779,37452.0,37448.0,0.008]
[1646682033058,0.51414009,37451.0,37448.0,0.008]
[1646682033258,0.51414009,37451.0,37442.0,0.55550789]
[1646682033259,0.44189405,37450.0,37442.0,0.55550789]
[1646682033458,0.066794,37448.0,37442.0,0.55550789]
[1646682033861,0.30064364,37445.0,37442.0,0.55550789]
[1646682034062,0.17851746,37444.0,37442.0,0.55550789]
[1646682034661,0.24660246,37444.0,37442.0,0.55550789]
[1646682034867,0.02629,37442.0,37437.0,0.007]
[1646682035063,0.02629,37442.0,37424.0,0.1009]
[1646682035064,0.248472,37430.0,37424.0,0.1009]
[1646682035292,0.272182,37430.0,37424.0,0.001]
[1646682035495,0.02629,37428.0,37415.0,0.001]
[1646682035692,0.066832,37425.0,37415.0,0.001]
[1646682036097,1.65,37429.0,37418.0,0.26036277]
[1646682036098,1.26247852,37429.0,37418.0,0.26036277]
[1646682036392,0.272182,37430.0,37418.0,0.48491584]
[1646682036993,0.066832,37425.0,37418.0,0.48491584]
[1646682037192,0.11623428,37425.0,37418.0,0.48491584]
[1646682037795,0.11623428,37425.0,37421.0,0.066818]
[1646682037995,0.11623428,37425.0,37420.0,0.13363]
[1646682038196,0.21006828,37424.0,37420.0,0.13363]
[1646682038393,0.11623428,37425.0,37420.0,0.13363]
[1646682039451,0.28317241,37425.0,37416.0,0.133645]
[1646682039649,0.30946241,37425.0,37416.0,0.133645]
[1646682039849,0.28317241,37425.0,37416.0,0.133645]
[1646682040251,0.11623428,37425.0,37416.0,0.133645]
[1646682040553,0.06623428,37425.0,37424.0,0.24125579]
[1646682040749,0.066804,37429.0,37424.0,0.24125579]
[1646682041246,0.32762784,37427.0,37421.0,0.1]
[1646682041447,0.133631,37426.0,37420.0,0.1]
[1646682041646,0.133631,37426.0,37416.0,0.37515066]
[1646682041845,0.05,37425.0,37416.0,0.37515066]
[1646682042048,0.05,37425.0,37421.0,0.29446797]
[1646682042446,0.04009,37425.0,37421.0,0.29446797]
[1646682042646,0.04009,37425.0,37421.0,0.42809697]
[1646682042911,0.44143439,37432.0,37422.0,1.65]
[1646682043111,0.44143439,37432.0,37424.0,0.066813]
[1646682043311,0.31415361,37432.0,37424.0,0.066813]
[1646682043711,0.066813,37430.0,37424.0,0.066813]
[1646682044513,0.066813,37430.0,37424.0,0.366813]
[1646682044715,0.00179013,37429.0,37424.0,0.64367998]
[1646682044913,0.00179013,37429.0,37425.0,0.1]
[1646682045111,0.066813,37430.0,37425.0,0.1]
[1646682045112,0.05426313,37430.0,37425.0,0.1]
[1646682045314,0.05426313,37430.0,37429.0,0.24895252]
[1646682046545,0.05426313,37430.0,37428.0,0.266793]
[1646682046546,0.05426313,37430.0,37428.0,0.166793]
[1646682046850,0.05426313,37430.0,37421.0,0.41936797]
[1646682046851,0.05426313,37430.0,37421.0,0.233631]
[1646682047048,0.05426313,37430.0,37416.0,0.1]
[1646682047250,0.05426313,37430.0,37415.0,0.1009]
[1646682047445,0.1998,37426.0,37415.0,0.1009]
[1646682047644,0.1998,37426.0,37415.0,0.001]
[1646682047645,0.51141895,37423.0,37415.0,0.001]
[1646682047846,0.51141895,37423.0,37417.0,0.24590478]
[1646682048044,0.116825,37423.0,37417.0,0.24590478]
[1646682048247,0.116825,37423.0,37418.0,0.066827]
[1646682048546,0.066825,37423.0,37418.0,0.066827]
[1646682048749,0.066825,37423.0,37419.0,0.16216084]
[1646682048948,0.056825,37423.0,37420.0,0.25775013]
[1646682049149,0.056825,37423.0,37420.0,0.23275013]
[1646682049350,0.056825,37423.0,37421.0,0.0999]
[1646682049552,0.056825,37423.0,37421.0,0.3499]
[1646682049755,0.0936,37425.0,37422.0,0.4]
[1646682049954,0.0936,37425.0,37423.0,0.0447]
[1646682050161,0.00201588,37430.0,37424.0,1.95]
[1646682050395,0.00201588,37430.0,37425.0,0.36279335]
[1646682050597,0.00201588,37430.0,37426.0,0.3]
[1646682050798,0.00201588,37430.0,37429.0,0.26537898]
[1646682050997,0.00114962,37430.0,37429.0,0.26537898]
[1646682051196,0.00114962,37430.0,37425.0,0.42100435]
[1646682051401,0.00114962,37430.0,37420.0,0.1]
[1646682051598,0.13475062,37430.0,37420.0,0.1]
[1646682051801,0.63830752,37430.0,37420.0,0.1]
[1646682051999,0.43475062,37430.0,37420.0,0.1]
[1646682052198,0.41972093,37427.0,37416.0,0.50543436]
[1646682052403,0.066826,37424.0,37416.0,0.50543436]
[1646682052596,0.267307,37424.0,37417.0,0.1]
[1646682052997,0.317307,37424.0,37417.0,0.1]
[1646682053196,0.317307,37424.0,37418.0,0.133644]
[1646682053398,0.066826,37422.0,37418.0,0.131257]
[1646682053898,0.116826,37422.0,37418.0,0.131257]
[1646682054750,0.20094962,37430.0,37418.0,0.131257]
[1646682054751,0.00114962,37430.0,37418.0,0.131257]
[1646682054953,0.00114962,37430.0,37427.0,0.29976194]
[1646682055146,0.00012917,37437.0,37430.0,0.00163859]
[1646682055550,0.133597,37434.0,37432.0,0.066795]
[1646682055752,0.066797,37436.0,37432.0,0.33604273]
[1646682055949,0.05555078,37441.0,37433.0,0.0447]
[1646682056153,0.41175078,37448.0,37435.0,1.75]
[1646682056353,0.27872167,37452.0,37436.0,0.1]
[1646682056354,0.29838545,37446.0,37436.0,0.1]
[1646682056551,0.066777,37442.0,37440.0,0.066779]
[1646682057150,0.066777,37442.0,37434.0,0.2913504]
[1646682057151,0.066777,37442.0,37432.0,0.24295773]
[1646682057350,0.061777,37442.0,37433.0,0.0447]
[1646682057793,0.00012828,37443.0,37433.0,0.0447]
[1646682057794,0.30460816,37436.0,37433.0,0.0447]
[1646682057992,0.066802,37437.0,37433.0,0.178297]
[1646682058895,0.066802,37437.0,37433.0,0.173297]
[1646682059097,0.37380273,37437.0,37433.0,0.173297]
[1646682059298,0.37360273,37437.0,37433.0,0.173297]
[1646682059497,0.0667236,37437.0,37433.0,0.173297]
[1646682059900,0.0667236,37437.0,37435.0,0.066786]
[1646682060105,0.0667236,37437.0,37435.0,0.061786]
[1646682060497,0.133564,37443.0,37436.0,0.2902338]
[1646682060498,0.06678,37439.0,37436.0,0.2902338]
[1646682060702,0.642567,37462.0,37441.0,0.133538]
[1646682060703,0.0275196,37455.0,37441.0,0.133538]
[1646682060899,0.2254,37462.0,37442.0,0.53388051]
[1646682060900,0.267128,37458.0,37442.0,0.53388051]
[1646682061099,0.29235945,37458.0,37442.0,0.53388051]
[1646682061302,0.133532,37451.0,37448.0,0.2854704]
[1646682061560,0.133532,37451.0,37449.0,0.066765]
[1646682062355,0.27668972,37450.0,37441.0,0.01335]
[1646682062557,0.22554348,37451.0,37439.0,0.1]
[1646682062558,0.066788,37448.0,37439.0,0.1]
[1646682062756,0.066788,37448.0,37444.0,0.007]
[1646682062956,0.133581,37448.0,37444.0,0.007]
[1646682063154,0.00012041,37447.0,37444.0,0.007]
[1646682063355,0.40838,37446.0,37444.0,0.007]
[1646682063560,0.40838,37445.0,37444.0,0.007]
[1646682063758,0.48467,37445.0,37444.0,0.007]
[1646682063952,0.066802,37443.0,37433.0,0.066804]
[1646682064153,0.066802,37443.0,37439.0,0.006]
[1646682064353,0.54556648,37442.0,37439.0,0.006]
[1646682064554,0.22208057,37434.0,37430.0,0.23514359]
[1646682064755,0.22208057,37434.0,37433.0,0.066804]
[1646682064953,0.27208057,37434.0,37430.0,0.23514359]
[1646682065155,0.27208057,37434.0,37430.0,0.10153859]
[1646682065413,0.47198057,37434.0,37430.0,0.10153859]
[1646682065608,0.02629,37432.0,37430.0,0.10153859]
[1646682065810,0.02629,37429.0,37423.0,0.01335]
[1646682066010,1.65,37430.0,37417.0,0.21640865]
[1646682066011,0.02629,37427.0,37417.0,0.21640865]
[1646682066207,0.3201532,37421.0,37417.0,0.21640865]
[1646682066406,0.3201532,37421.0,37415.0,0.001]
[1646682066407,0.40838,37420.0,37415.0,0.001]
[1646682066609,0.4632892,37421.0,37415.0,0.001]
[1646682066809,0.13368206,37420.0,37415.0,0.001]
[1646682067007,0.25052811,37421.0,37416.0,0.005435]
[1646682067008,0.116846,37421.0,37416.0,0.005435]
[1646682067211,0.05,37421.0,37416.0,0.005435]
[1646682067609,0.066827,37422.0,37416.0,0.005435]
[1646682067810,0.133646,37427.0,37420.0,0.24107846]
[1646682068016,0.17807614,37429.0,37421.0,0.005423]
[1646682068209,1.592992,37438.0,37422.0,0.7]
[1646682068210,0.12740245,37438.0,37422.0,0.7]
[1646682068409,0.15716396,37438.0,37422.0,0.7]
[1646682068608,0.12740245,37438.0,37423.0,0.005411]
[1646682068808,0.02629,37437.0,37423.0,0.005411]
[1646682069044,0.12740245,37438.0,37424.0,0.005411]
[1646682069045,0.02629,37432.0,37424.0,0.005411]
[1646682069246,0.02629,37430.0,37425.0,0.005414]
[1646682069450,0.093104,37430.0,37419.0,0.21640865]
[1646682069646,0.093104,37430.0,37417.0,0.21640865]
[1646682069847,0.093104,37430.0,37416.0,0.21640865]
[1646682070048,0.143104,37430.0,37415.0,0.21740865]
[1646682070251,0.27849861,37416.0,37415.0,0.001]